fUSD/lending_fUSD_20250818
["ID","MTS","AMOUNT","RATE_DAILY","PERIOD"]
[380015901,1755475854615,-1648.28,0.00013698,2]
[380015902,1755475854625,-400.0,0.00013698,2]
[380015903,1755475854635,-250.0,0.00013698,2]
[380015904,1755475854646,-151.0,0.00013698,2]
[380015905,1755475854655,-151.0,0.00013698,2]
[380015906,1755475854665,-151.0,0.00013698,2]
[380015907,1755475854675,-539.14,0.00013698,2]
[380015908,1755475854684,-2045.48,0.00013698,2]
[380015909,1755475854695,-2045.48,0.00013698,2]
[380015910,1755475854704,-500.0,0.00013698,2]
[380015911,1755475854713,-2045.48,0.00013698,2]
[380015912,1755475854723,-151.0,0.00013698,2]
[380015913,1755475854732,-500.0,0.00013698,2]
[380015914,1755475854742,-2045.48,0.00013698,2]
[380015915,1755475854751,-500.0,0.00013698,2]
[380015916,1755475854761,-500.0,0.00013698,2]
[380015917,1755475854770,-2045.48,0.00013698,2]
[380015918,1755475854780,-1155.96,0.00013698,2]
[380015919,1755475854790,-500.0,0.00013698,2]
[380015920,1755475854799,-2045.48,0.00013698,2]
[380015921,1755475854809,-500.0,0.00013698,2]
[380015922,1755475854819,-151.0,0.00013698,2]
[380015923,1755475854829,-2045.48,0.00013698,2]
[380015924,1755475854838,-400.0,0.00013698,2]
[380015925,1755475854847,-500.0,0.00013698,2]
[380015926,1755475854857,-2045.48,0.00013698,2]
[380015927,1755475854867,-500.0,0.00013698,2]
[380015928,1755475854877,-2045.48,0.00013698,2]
[380015929,1755475854887,-500.0,0.00013698,2]
[380015930,1755475854896,-151.0,0.00013698,2]
[380015931,1755475854906,-2045.48,0.00013698,2]
[380015932,1755475854915,-500.0,0.00013698,2]
[380015933,1755475854925,-2045.48,0.00013698,2]
[380015934,1755475854935,-500.0,0.00013698,2]
[380015935,1755475854945,-2045.48,0.00013698,2]
[380015936,1755475854955,-475.75,0.00013698,2]
[380015937,1755475854964,-2045.48,0.00013698,2]
[380015938,1755475854974,-151.0,0.00013698,2]
[380015939,1755475854983,-2045.48,0.00013698,2]
[380015940,1755475854993,-2045.48,0.00013698,2]
[380015941,1755475855002,-400.0,0.00013698,2]
[380015942,1755475855012,-2045.48,0.00013698,2]
[380015943,1755475855021,-2045.48,0.00013698,2]
[380015944,1755475855031,-2045.48,0.00013698,2]
[380015945,1755475855040,-2045.48,0.00013698,2]
[380015946,1755475855050,-369.189926,0.00013698,2]
[380015947,1755475855059,-835.28,0.00013698,2]
[380015948,1755475855070,-2045.48,0.00013698,2]
[380015949,1755475855080,-2045.48,0.00013698,2]
[380015950,1755475855089,-3337.12,0.00013698,2]
[380015951,1755475855099,-2045.48,0.00013698,2]
[380015952,1755475855108,-400.0,0.00013698,2]
[380015953,1755475855118,-2045.48,0.00013698,2]
[380015954,1755475855127,-2045.63332638,0.00013698,2]
[380015955,1755475855137,-1085.48,0.00013698,2]
[380015956,1755475855146,-500.0,0.00013698,2]
[380015957,1755475855156,-402.53,0.00013698,2]
[380015958,1755475855167,-500.0,0.00013698,2]
[380015959,1755475855177,-291.3260148,0.00013698,2]
[380015960,1755475855187,-1860.03,0.00013698,2]
[380015961,1755475855197,-500.0,0.00013698,2]
[380015962,1755475855206,-1729.73,0.00013698,2]
[380015963,1755475855216,-369.189926,0.00013698,2]
[380015964,1755475855226,-500.0,0.00013698,2]
[380015965,1755475855236,-987.84,0.00013698,2]
[380015966,1755475855245,-500.0,0.00013698,2]
[380015967,1755475855256,-1282.29,0.00013698,2]
[380015968,1755475855266,-500.0,0.00013698,2]
[380015969,1755475855275,-400.0,0.00013698,2]
[380015970,1755475855285,-430.84,0.00013698,2]
[380015971,1755475855295,-400.0,0.00013698,2]
[380015972,1755475855305,-151.0,0.00013698,2]
[380015973,1755475855315,-681.660797,0.00013698,2]
[380015974,1755475855324,-846.4,0.00013698,2]
[380015975,1755475855333,-4148.2,0.00013698,2]
[380015976,1755475855343,-400.0,0.00013698,2]
[380015977,1755475855353,-681.660797,0.00013698,2]
[380015978,1755475855363,-151.0,0.00013698,2]
[380015979,1755475855373,-400.0,0.00013698,2]
[380015980,1755475855383,-577.67,0.00013698,2]
[380015981,1755475855392,-1134.545064,0.00013698,2]
[380015982,1755475855403,-400.0,0.00013698,2]
[380015983,1755475855413,-400.0,0.00013698,2]
[380015984,1755475855423,-248.05,0.00013698,2]
[380015985,1755475855434,-1788.52,0.00013698,2]
[380015986,1755475855446,-400.0,0.00013698,2]
[380015987,1755475855459,-1054.85,0.00013698,2]
[380015988,1755475855469,-400.0,0.00013698,2]
[380015989,1755475855478,-2954.64,0.00013698,2]
[380015990,1755475855488,-1134.545064,0.00013698,2]
[380015991,1755475855497,-573.24,0.00013698,2]
[380015992,1755475855507,-431.8,0.00013698,2]
[380015993,1755475855516,-400.0,0.00013698,2]
[380015994,1755475855527,-2511.11,0.00013698,2]
[380015995,1755475855540,-400.0,0.00013698,2]
[380015996,1755475855550,-279.114384,0.00013698,2]
[380015997,1755475855559,-813.59,0.00013698,2]
[380015998,1755475855570,-708.57,0.00013698,2]
[380015999,1755475855580,-400.0,0.00013698,2]
[380016000,1755475855590,-492.33,0.00013698,2]
[380016001,1755475855600,-153.540377,0.00013698,2]
[380016002,1755475855611,-279.114384,0.00013698,2]
[380016003,1755475855621,-400.0,0.00013698,2]
[380016004,1755475855631,-806.43,0.00013698,2]
[380016005,1755475855640,-505.91,0.00013698,2]
[380016006,1755475855650,-473.64,0.00013698,2]
[380016007,1755475855660,-3072.57,0.00013698,2]
[380016008,1755475855670,-153.540377,0.00013698,2]
[380016009,1755475855679,-400.0,0.00013698,2]
[380016010,1755475855689,-2419.42,0.00013698,2]
[380016011,1755475855702,-679.83,0.00013698,2]
[380016012,1755475855712,-400.0,0.00013698,2]
[380016013,1755475855721,-4444.34,0.00013698,2]
[380016014,1755475855731,-467.04,0.00013698,2]
[380016015,1755475855740,-400.0,0.00013698,2]
[380016016,1755475855750,-2806.53,0.00013698,2]
[380016017,1755475855760,-1367.67,0.00013698,2]
[380016018,1755475855769,-400.0,0.00013698,2]
[380016019,1755475855779,-455.49,0.00013698,2]
[380016020,1755475855789,-400.0,0.00013698,2]
[380016021,1755475855799,-2065.97,0.00013698,2]
[380016022,1755475855809,-400.0,0.00013698,2]
[380016023,1755475855819,-151.0,0.00013698,2]
[380016024,1755475855828,-400.0,0.00013698,2]
[380016025,1755475855839,-1877.45,0.00013698,2]
[380016026,1755475855849,-400.0,0.00013698,2]
[380016027,1755475855859,-1994.63,0.00013698,2]
[380016028,1755475855869,-3615.55,0.00013698,2]
[380016029,1755475855878,-400.0,0.00013698,2]
[380016030,1755475855888,-2453.84,0.00013698,2]
[380016031,1755475855898,-400.0,0.00013698,2]
[380016032,1755475855908,-400.0,0.00013698,2]
[380016033,1755475855917,-151.0,0.00013698,2]
[380016034,1755475855927,-151.0,0.00013698,2]
[380016035,1755475855937,-400.0,0.00013698,2]
[380016036,1755475855946,-400.0,0.00013698,2]
[380016037,1755475855956,-400.0,0.00013698,2]
[380016038,1755475855965,-400.0,0.00013698,2]
[380016039,1755475855974,-400.0,0.00013698,2]
[380016040,1755475855984,-1450.85,0.00013698,2]
[380016041,1755475855994,-589.25,0.00013698,2]
[380016042,1755475856003,-400.0,0.00013698,2]
[380016043,1755475856013,-400.0,0.00013698,2]
[380016044,1755475856023,-1533.01,0.00013698,2]
[380016045,1755475856034,-1480.32,0.00013698,2]
[380016046,1755475856043,-924.27,0.00013698,2]
[380016047,1755475856053,-1210.08,0.00013698,2]
[380016048,1755475856064,-400.0,0.00013698,2]
[380016049,1755475856075,-400.0,0.00013698,2]
[380016050,1755475856085,-442.240825,0.00013698,2]
[380016051,1755475856094,-400.99837697,0.00013698,2]
[380016052,1755475856103,-2824.72,0.00013698,2]
[380016053,1755475856113,-151.0,0.00013698,2]
[380016054,1755475856123,-400.0,0.00013698,2]
[380016055,1755475856132,-2297.0,0.00013698,2]
[380016056,1755475856142,-400.0,0.00013698,2]
[380016057,1755475856151,-817.03,0.00013698,2]
[380016058,1755475856161,-442.240825,0.00013698,2]
[380016059,1755475856171,-514.593126,0.00013698,2]
[380016060,1755475856180,-400.0,0.00013698,2]
[380016061,1755475856190,-2459.56,0.00013698,2]
[380016062,1755475856199,-475.93,0.00013698,2]
[380016063,1755475856210,-400.0,0.00013698,2]
[380016064,1755475856219,-3468.07,0.00013698,2]
[380016065,1755475856228,-173.875101,0.00013698,2]
[380016066,1755475856238,-514.593126,0.00013698,2]
[380016067,1755475856247,-400.24835168,0.00013698,2]
[380016068,1755475856257,-400.0,0.00013698,2]
[380016069,1755475856266,-400.0,0.00013698,2]
[380016070,1755475856276,-151.0,0.00013698,2]
[380016071,1755475856286,-1240.75,0.00013698,2]
[380016072,1755475856295,-1902.18,0.00013698,2]
[380016073,1755475856305,-795.6,0.00013698,2]
[380016074,1755475856314,-657.95,0.00013698,2]
[380016075,1755475856324,-151.0,0.00013698,2]
[380016076,1755475856334,-400.0,0.00013698,2]
[380016077,1755475856344,-173.875101,0.00013698,2]
[380016078,1755475856353,-858.82,0.00013698,2]
[380016079,1755475856363,-400.0,0.00013698,2]
[380016080,1755475856373,-400.0,0.00013698,2]
[380016081,1755475856382,-1499.45,0.00013698,2]
[380016082,1755475856393,-1039.84,0.00013698,2]
[380016083,1755475856403,-151.0,0.00013698,2]
[380016084,1755475856413,-400.0,0.00013698,2]
[380016085,1755475856422,-400.0,0.00013698,2]
[380016086,1755475856432,-157.876196,0.00013698,2]
[380016087,1755475856441,-468.57,0.00013698,2]
[380016088,1755475856450,-2409.48,0.00013698,2]
[380016089,1755475856460,-157.876196,0.00013698,2]
[380016090,1755475856469,-534.34,0.00013698,2]
[380016091,1755475856478,-896.76,0.00013698,2]
[380016092,1755475856488,-400.0,0.00013698,2]
[380016093,1755475856498,-400.0,0.00013698,2]
[380016094,1755475856508,-400.0,0.00013698,2]
[380016095,1755475856517,-400.0,0.00013698,2]
[380016096,1755475856527,-1276.26,0.00013698,2]
[380016097,1755475856541,-2798.64,0.00013698,2]
[380016098,1755475856550,-400.0,0.00013698,2]
[380016099,1755475856560,-1376.81,0.00013698,2]
[380016100,1755475856570,-418.49564565,0.00013698,2]
[380016101,1755475856580,-403.43007622,0.00013698,2]
[380016102,1755475856590,-2009.04,0.00013698,2]
[380016103,1755475856599,-151.0,0.00013698,2]
[380016104,1755475856610,-1227.49,0.00013698,2]
[380016105,1755475856620,-400.0,0.00013698,2]
[380016106,1755475856629,-400.0,0.00013698,2]
[380016107,1755475856639,-400.0,0.00013698,2]
[380016108,1755475856649,-151.0,0.00013698,2]
[380016109,1755475856659,-401.63534949,0.00013698,2]
[380016110,1755475856669,-890.16,0.00013698,2]
[380016111,1755475856678,-400.0,0.00013698,2]
[380016112,1755475856687,-592.15,0.00013698,2]
[380016113,1755475856697,-400.0,0.00013698,2]
[380016114,1755475856706,-1591.02,0.00013698,2]
[380016115,1755475856716,-4096.74,0.00013698,2]
[380016116,1755475856726,-400.0,0.00013698,2]
[380016117,1755475856737,-579.12,0.00013698,2]
[380016118,1755475856746,-400.0,0.00013698,2]
[380016119,1755475856755,-400.0,0.00013698,2]
[380016120,1755475856765,-2711.92,0.00013698,2]
[380016121,1755475856774,-400.0,0.00013698,2]
[380016122,1755475856783,-2059.27,0.00013698,2]
[380016123,1755475856793,-466.91,0.00013698,2]
[380016124,1755475856803,-400.0,0.00013698,2]
[380016125,1755475856813,-1399.73,0.00013698,2]
[380016126,1755475856822,-400.0,0.00013698,2]
[380016127,1755475856832,-1458.16,0.00013698,2]
[380016128,1755475856841,-952.03,0.00013698,2]
[380016129,1755475856850,-400.0,0.00013698,2]
[380016130,1755475856860,-400.0,0.00013698,2]
[380016131,1755475856870,-400.0,0.00013698,2]
[380016132,1755475856880,-400.0,0.00013698,2]
[380016133,1755475856890,-400.0,0.00013698,2]
[380016134,1755475856899,-400.0,0.00013698,2]
[380016135,1755475856909,-2609.87,0.00013698,2]
[380016136,1755475856918,-1804.31,0.00013698,2]
[380016137,1755475856928,-3337.32,0.00013698,2]
[380016138,1755475856937,-438.18,0.00013698,2]
[380016139,1755475856947,-500.0,0.00013698,2]
[380016140,1755475856956,-500.0,0.00013698,2]
[380016141,1755475856966,-3753.46,0.00013698,2]
[380016142,1755475856975,-500.0,0.00013698,2]
[380016143,1755475856984,-500.0,0.00013698,2]
[380016144,1755475856993,-973.79,0.00013698,2]
[380016145,1755475857003,-400.0,0.00013698,2]
[380016146,1755475857012,-500.0,0.00013698,2]
[380016147,1755475857021,-693.77,0.00013698,2]
[380016148,1755475857031,-500.0,0.00013698,2]
[380016149,1755475857041,-500.0,0.00013698,2]
[380016150,1755475857050,-3853.38,0.00013698,2]
[380016151,1755475857059,-500.0,0.00013698,2]
[380016152,1755475857069,-500.0,0.00013698,2]
[380016153,1755475857078,-500.0,0.00013698,2]
[380016154,1755475857088,-400.0,0.00013698,2]
[380016155,1755475857097,-400.0,0.00013698,2]
[380016156,1755475857107,-500.0,0.00013698,2]
[380016157,1755475857117,-400.0,0.00013698,2]
[380016158,1755475857126,-1477.11,0.00013698,2]
[380016159,1755475857135,-500.0,0.00013698,2]
[380016160,1755475857145,-510.44661737,0.00013698,2]
[380016161,1755475857155,-400.0,0.00013698,2]
[380016162,1755475857165,-1754.88,0.00013698,2]
[380016163,1755475857174,-910.65,0.00013698,2]
[380016164,1755475857184,-400.0,0.00013698,2]
[380016165,1755475857193,-400.0,0.00013698,2]
[380016166,1755475857203,-400.0,0.00013698,2]
[380016167,1755475857213,-400.0,0.00013698,2]
[380016168,1755475857223,-400.0,0.00013698,2]
[380016169,1755475857232,-806.3,0.00013698,2]
[380016170,1755475857241,-1174.93,0.00013698,2]
[380016171,1755475857251,-400.0,0.00013698,2]
[380016172,1755475857260,-2426.56,0.00013698,2]
[380016173,1755475857269,-1043.26,0.00013698,2]
[380016174,1755475857279,-2255.2,0.00013698,2]
[380016175,1755475857288,-817.14,0.00013698,2]
[380016176,1755475857297,-400.0,0.00013698,2]
[380016177,1755475857307,-400.0,0.00013698,2]
[380016178,1755475857317,-400.0,0.00013698,2]
[380016179,1755475857327,-4542.63,0.00013698,2]
[380016180,1755475857336,-400.0,0.00013698,2]
[380016181,1755475857346,-400.0,0.00013698,2]
[380016182,1755475857355,-400.0,0.00013698,2]
[380016183,1755475857365,-1447.79,0.00013698,2]
[380016184,1755475857374,-400.0,0.00013698,2]
[380016185,1755475857384,-1979.06,0.00013698,2]
[380016186,1755475857394,-400.0,0.00013698,2]
[380016187,1755475857403,-1962.09,0.00013698,2]
[380016188,1755475857413,-400.0,0.00013698,2]
[380016189,1755475857423,-400.0,0.00013698,2]
[380016190,1755475857433,-3813.29,0.00013698,2]
[380016191,1755475857443,-400.0,0.00013698,2]
[380016192,1755475857452,-450.24,0.00013698,2]
[380016193,1755475857462,-1804.91,0.00013698,2]
[380016194,1755475857471,-681.32,0.00013698,2]
[380016195,1755475857482,-400.0,0.00013698,2]
[380016196,1755475857492,-400.0,0.00013698,2]
[380016197,1755475857505,-1487.62,0.00013698,2]
[380016198,1755475857515,-400.0,0.00013698,2]
[380016199,1755475857526,-500.0,0.00013698,2]
[380016200,1755475857540,-500.0,0.00013698,2]
[380016201,1755475857550,-500.0,0.00013698,2]
[380016202,1755475857559,-510.33,0.00013698,2]
[380016203,1755475857570,-500.0,0.00013698,2]
[380016204,1755475857579,-443.51,0.00013698,2]
[380016205,1755475857589,-475.33,0.00013698,2]
[380016206,1755475857598,-500.0,0.00013698,2]
[380016207,1755475857609,-573.57,0.00013698,2]
[380016208,1755475857618,-500.0,0.00013698,2]
[380016209,1755475857627,-400.0,0.00013698,2]
[380016210,1755475857637,-400.0,0.00013698,2]
[380016211,1755475857646,-400.0,0.00013698,2]
[380016212,1755475857656,-500.0,0.00013698,2]
[380016213,1755475857665,-500.0,0.00013698,2]
[380016214,1755475857675,-400.0,0.00013698,2]
[380016215,1755475857685,-151.0,0.00013698,2]
[380016216,1755475857694,-400.0,0.00013698,2]
[380016217,1755475857704,-400.0,0.00013698,2]
[380016218,1755475857714,-151.0,0.00013698,2]
[380016219,1755475857723,-151.0,0.00013698,2]
[380016220,1755475857733,-400.0,0.00013698,2]
[380016221,1755475857743,-435.53,0.00013698,2]
[380016222,1755475857753,-689.4,0.00013698,2]
[380016223,1755475857762,-151.0,0.00013698,2]
[380016224,1755475857772,-400.0,0.00013698,2]
[380016225,1755475857782,-3316.07,0.00013698,2]
[380016226,1755475857792,-400.0,0.00013698,2]
[380016227,1755475857802,-1320.64,0.00013698,2]
[380016228,1755475857812,-400.0,0.00013698,2]
[380016229,1755475857821,-2586.07,0.00013698,2]
[380016230,1755475857831,-400.0,0.00013698,2]
[380016231,1755475857841,-688.63,0.00013698,2]
[380016232,1755475857850,-3339.12,0.00013698,2]
[380016233,1755475857860,-400.0,0.00013698,2]
[380016234,1755475857870,-602.31,0.00013698,2]
[380016235,1755475857879,-400.0,0.00013698,2]
[380016236,1755475857888,-1776.98,0.00013698,2]
[380016237,1755475857898,-810.391604,0.00013698,2]
[380016238,1755475857908,-205.629111,0.00013698,2]
[380016239,1755475857918,-3054.56,0.00013698,2]
[380016240,1755475857928,-551.68041839,0.00013698,2]
[380016241,1755475857938,-1532.76,0.00013698,2]
[380016242,1755475857948,-1057.18,0.00013698,2]
[380016243,1755475857957,-400.0,0.00013698,2]
[380016244,1755475857967,-400.0,0.00013698,2]
[380016245,1755475857976,-400.0,0.00013698,2]
[380016246,1755475858113,-810.391604,0.00013698,2]
[380016247,1755475858151,-205.629111,0.00013698,2]
[380016248,1755475858163,-754.23,0.00013698,2]
[380016249,1755475858174,-821.71,0.00013698,2]
[380016250,1755475858183,-1584.83,0.00013698,2]
[380016251,1755475858193,-1657.01,0.00013698,2]
[380016252,1755475858202,-2008.89,0.00013698,2]
[380016253,1755475858212,-641.15,0.00013698,2]
[380016254,1755475858222,-400.0,0.00013698,2]
[380016255,1755475858233,-400.0,0.00013698,2]
[380016256,1755475858243,-1196.23,0.00013698,2]
[380016257,1755475858254,-1156.89,0.00013698,2]
[380016258,1755475858264,-400.0,0.00013698,2]
[380016259,1755475858274,-400.0,0.00013698,2]
[380016260,1755475858283,-1156.89,0.00013698,2]
[380016261,1755475858293,-1156.89,0.00013698,2]
[380016262,1755475858303,-1156.89,0.00013698,2]
[380016263,1755475858314,-1156.89,0.00013698,2]
[380016264,1755475858324,-1851.4,0.00013698,2]
[380016265,1755475858335,-1156.89,0.00013698,2]
[380016266,1755475858345,-1156.89,0.00013698,2]
[380016267,1755475858355,-1156.89,0.00013698,2]
[380016268,1755475858364,-1156.89,0.00013698,2]
[380016269,1755475858374,-400.0,0.00013698,2]
[380016270,1755475858384,-1156.89,0.00013698,2]
[380016271,1755475858394,-220.584402,0.00013698,2]
[380016272,1755475858404,-1156.89,0.00013698,2]
[380016273,1755475858413,-1156.89,0.00013698,2]
[380016274,1755475858423,-400.0,0.00013698,2]
[380016275,1755475858433,-1156.89,0.00013698,2]
[380016276,1755475858442,-400.0,0.00013698,2]
[380016277,1755475858452,-400.0,0.00013698,2]
[380016278,1755475858462,-400.0,0.00013698,2]
[380016279,1755475858472,-1156.89,0.00013698,2]
[380016280,1755475858482,-1156.89,0.00013698,2]
[380016281,1755475858491,-1494.72,0.00013698,2]
[380016282,1755475858502,-400.0,0.00013698,2]
[380016283,1755475858511,-1156.89,0.00013698,2]
[380016284,1755475858521,-1156.89,0.00013698,2]
[380016285,1755475858534,-1156.89,0.00013698,2]
[380016286,1755475858544,-3720.69,0.00013698,2]
[380016287,1755475858553,-1156.89,0.00013698,2]
[380016288,1755475858563,-2205.75,0.00013698,2]
[380016289,1755475858573,-1156.89,0.00013698,2]
[380016290,1755475858585,-1156.89,0.00013698,2]
[380016291,1755475858595,-400.0,0.00013698,2]
[380016292,1755475858605,-1156.89,0.00013698,2]
[380016293,1755475858615,-1156.89,0.00013698,2]
[380016294,1755475858625,-1156.9,0.00013698,2]
[380016295,1755475858635,-220.584402,0.00013698,2]
[380016296,1755475858645,-931.93,0.00013698,2]
[380016297,1755475858654,-400.0,0.00013698,2]
[380016298,1755475858664,-400.0,0.00013698,2]
[380016299,1755475858673,-400.0,0.00013698,2]
[380016300,1755475858683,-679.36,0.00013698,2]
[380016301,1755475858693,-400.0,0.00013698,2]
[380016302,1755475858703,-3447.27,0.00013698,2]
[380016303,1755475858713,-931.66,0.00013698,2]
[380016304,1755475858723,-400.0,0.00013698,2]
[380016305,1755475858733,-1065.79,0.00013698,2]
[380016306,1755475858742,-400.0,0.00013698,2]
[380016307,1755475858752,-574.3,0.00013698,2]
[380016308,1755475858762,-400.0,0.00013698,2]
[380016309,1755475858771,-400.0,0.00013698,2]
[380016310,1755475858781,-400.0,0.00013698,2]
[380016311,1755475858792,-400.0,0.00013698,2]
[380016312,1755475858802,-400.0,0.00013698,2]
[380016313,1755475858812,-400.0,0.00013698,2]
[380016314,1755475858821,-400.0,0.00013698,2]
[380016315,1755475858831,-710.87,0.00013698,2]
[380016316,1755475858841,-400.0,0.00013698,2]
[380016317,1755475858851,-2545.75,0.00013698,2]
[380016318,1755475858860,-1894.57,0.00013698,2]
[380016319,1755475858870,-400.0,0.00013698,2]
[380016320,1755475858879,-400.0,0.00013698,2]
[380016321,1755475858888,-3790.56,0.00013698,2]
[380016322,1755475858898,-400.0,0.00013698,2]
[380016323,1755475858907,-4190.75,0.00013698,2]
[380016324,1755475858916,-400.0,0.00013698,2]
[380016325,1755475858926,-400.0,0.00013698,2]
[380016326,1755475858936,-408.70661802,0.00013698,2]
[380016327,1755475858945,-941.3,0.00013698,2]
[380016328,1755475858955,-400.0,0.00013698,2]
[380016329,1755475858965,-151.0,0.00013698,2]
[380016330,1755475858975,-400.0,0.00013698,2]
[380016331,1755475858984,-500.0,0.00013698,2]
[380016332,1755475858993,-500.0,0.00013698,2]
[380016333,1755475859003,-400.0,0.00013698,2]
[380016334,1755475859012,-626.6,0.00013698,2]
[380016335,1755475859022,-400.0,0.00013698,2]
[380016336,1755475859032,-1427.25,0.00013698,2]
[380016337,1755475859042,-1852.61,0.00013698,2]
[380016338,1755475859051,-2239.84,0.00013698,2]
[380016339,1755475859061,-151.337807,0.00013698,2]
[380016340,1755475859071,-400.0,0.00013698,2]
[380016341,1755475859080,-400.0,0.00013698,2]
[380016342,1755475859090,-4335.99,0.00013698,2]
[380016343,1755475859100,-190.28053606,0.00013698,2]
[380016344,1755475859110,-623.95,0.00013698,2]
[380016345,1755475859120,-400.0,0.00013698,2]
[380016346,1755475859130,-581.54,0.00013698,2]
[380016347,1755475859140,-400.0,0.00013698,2]
[380016348,1755475859150,-1052.97,0.00013698,2]
[380016349,1755475859160,-151.0,0.00013698,2]
[380016350,1755475859170,-400.0,0.00013698,2]
[380016351,1755475859184,-881.84,0.00013698,2]
[380016352,1755475859193,-1620.27,0.00013698,2]
[380016353,1755475859204,-2235.3,0.00013698,2]
[380016354,1755475859213,-400.0,0.00013698,2]
[380016355,1755475859223,-534.338006,0.00013698,2]
[380016356,1755475859233,-3754.38,0.00013698,2]
[380016357,1755475859243,-5900.13,0.00013698,2]
[380016358,1755475859253,-400.0,0.00013698,2]
[380016359,1755475859263,-400.0,0.00013698,2]
[380016360,1755475859273,-400.0,0.00013698,2]
[380016361,1755475859282,-151.0,0.00013698,2]
[380016362,1755475859292,-151.0,0.00013698,2]
[380016363,1755475859302,-598.39,0.00013698,2]
[380016364,1755475859311,-400.0,0.00013698,2]
[380016365,1755475859321,-400.0,0.00013698,2]
[380016366,1755475859330,-736.76,0.00013698,2]
[380016367,1755475859340,-400.0,0.00013698,2]
[380016368,1755475859349,-2191.15,0.00013698,2]
[380016369,1755475859358,-400.0,0.00013698,2]
[380016370,1755475859369,-2237.33,0.00013698,2]
[380016371,1755475859378,-151.0,0.00013698,2]
[380016372,1755475859388,-400.0,0.00013698,2]
[380016373,1755475859398,-151.0,0.00013698,2]
[380016374,1755475859408,-727.08,0.00013698,2]
[380016375,1755475859418,-2432.47,0.00013698,2]
[380016376,1755475859428,-1401.19,0.00013698,2]
[380016377,1755475859438,-400.0,0.00013698,2]
[380016378,1755475859447,-359.46586,0.00013698,2]
[380016379,1755475859457,-400.0,0.00013698,2]
[380016380,1755475859467,-400.0,0.00013698,2]
[380016381,1755475859478,-1016.16,0.00013698,2]
[380016382,1755475859488,-663.5,0.00013698,2]
[380016383,1755475859497,-151.0,0.00013698,2]
[380016384,1755475859507,-359.46586,0.00013698,2]
[380016385,1755475859517,-500.0,0.00013698,2]
[380016386,1755475859526,-168.75024713,0.00013698,2]
[380016387,1755475859540,-500.0,0.00013698,2]
[380016388,1755475859550,-831.83,0.00013698,2]
[380016389,1755475859560,-500.0,0.00013698,2]
[380016390,1755475859571,-500.0,0.00013698,2]
[380016391,1755475859580,-743.6,0.00013698,2]
[380016392,1755475859590,-500.0,0.00013698,2]
[380016393,1755475859599,-500.0,0.00013698,2]
[380016394,1755475859611,-500.0,0.00013698,2]
[380016395,1755475859621,-769.39,0.00013698,2]
[380016396,1755475859630,-500.0,0.00013698,2]
[380016397,1755475859640,-500.0,0.00013698,2]
[380016398,1755475859649,-400.0,0.00013698,2]
[380016399,1755475859659,-3860.5,0.00013698,2]
[380016400,1755475859668,-151.0,0.00013698,2]